lending/lending_fUSD_20240124
["ID","MTS","AMOUNT","RATE_DAILY","PERIOD"]
[312639024,1706122336403,-539.38,0.0005041,31]
[312639025,1706122336413,-754.54,0.0005041,31]
[312639026,1706122336422,-748.39,0.0005041,31]
[312639027,1706122336431,-759.37,0.0005041,31]
[312639028,1706122336441,-596.17,0.0005041,31]
[312639029,1706122336451,-590.14,0.0005041,31]
[312639030,1706122336460,-500.0,0.0005041,31]
[312639031,1706122336471,-500.0,0.0005041,31]
[312639032,1706122336481,-574.37,0.0005041,31]
[312639033,1706122336492,-836.66,0.0005041,31]
[312639034,1706122336502,-500.0,0.0005041,31]
[312639035,1706122336511,-834.27,0.0005041,31]
[312639036,1706122336521,-1000.0,0.0005041,30]
[312639037,1706122336531,-500.0,0.0005041,31]
[312639038,1706122336541,-500.0,0.0005041,31]
[312639039,1706122336550,-500.0,0.0005041,31]
[312639040,1706122336559,-500.0,0.0005041,31]
[312639041,1706122336568,-500.0,0.0005041,31]
[312639042,1706122336578,-561.15,0.0005041,31]
[312639043,1706122336588,-571.13,0.0005041,31]
[312639044,1706122336598,-500.0,0.0005041,31]
[312639045,1706122336607,-722.96,0.0005041,31]
[312639046,1706122336617,-2163.99,0.0005041,31]
[312639047,1706122336626,-574.84,0.0005041,31]
[312639048,1706122336636,-500.0,0.0005041,31]
[312639049,1706122336646,-500.0,0.0005041,31]
[312639050,1706122336655,-500.0,0.0005041,31]
[312639051,1706122336665,-500.0,0.0005041,31]
[312639052,1706122336675,-624.88,0.0005041,31]
[312639053,1706122336684,-500.0,0.0005041,31]
[312639054,1706122336694,-1020.09,0.0005041,31]
[312639055,1706122336703,-576.77312518,0.0005041,30]
[312639056,1706122336713,-683.14,0.0005041,31]
[312639057,1706122336722,-500.0,0.0005041,31]
[312639058,1706122336732,-1074.38,0.0005041,31]
[312639059,1706122336741,-500.0,0.0005041,31]
[312639060,1706122336751,-500.0,0.0005041,31]
[312639061,1706122336761,-500.0,0.0005041,31]
[312639062,1706122336770,-774.89,0.0005041,31]
[312639063,1706122336781,-500.0,0.0005041,31]
[312639064,1706122336791,-500.0,0.0005041,31]
[312639065,1706122336801,-598.13,0.0005041,31]
[312639066,1706122336811,-822.96,0.0005041,31]
[312639067,1706122336820,-590.69,0.0005041,31]
[312639068,1706122336830,-739.58,0.0005041,31]
[312639069,1706122336840,-1001.25,0.0005041,31]
[312639070,1706122336850,-520.46694646,0.0005041,31]
[312639071,1706122336860,-500.0,0.0005041,31]
[312639072,1706122336870,-522.93936269,0.0005041,31]
[312639073,1706122336881,-557.33,0.0005041,31]
[312639074,1706122336890,-500.0,0.0005041,31]
[312639075,1706122336900,-500.0,0.0005041,31]
[312639076,1706122336909,-535.27,0.0005041,31]
[312639077,1706122336919,-1123.3,0.0005041,31]
[312639078,1706122336929,-500.0,0.0005041,31]
[312639079,1706122336938,-559.97,0.0005041,31]
[312639080,1706122336948,-500.0,0.0005041,31]
[312639081,1706122336957,-545.51,0.0005041,31]
[312639082,1706122336967,-703.65,0.0005041,31]
[312639083,1706122336976,-500.0,0.0005041,31]
[312639084,1706122336986,-500.0,0.0005041,31]
[312639085,1706122336996,-507.77,0.0005041,31]
[312639086,1706122337005,-500.0,0.0005041,31]
[312639087,1706122337014,-500.0,0.0005041,31]
[312639088,1706122337025,-608.4255014,0.0005041,31]
[312639089,1706122337035,-500.0,0.0005041,31]
[312639090,1706122337045,-500.0,0.0005041,31]
[312639091,1706122337055,-500.0,0.0005041,31]
[312639092,1706122337065,-500.0,0.0005041,31]
[312639093,1706122337074,-744.37,0.0005041,31]
[312639094,1706122337084,-540.51,0.0005041,31]
[312639095,1706122337094,-500.0,0.0005041,31]
[312639096,1706122337103,-638.61,0.0005041,31]
[312639097,1706122337113,-500.0,0.0005041,31]
[312639098,1706122337123,-664.27,0.0005041,31]
[312639099,1706122337133,-1168.99,0.0005041,31]
[312639100,1706122337143,-623.83,0.0005041,31]
[312639101,1706122337153,-500.0,0.0005041,31]
[312639102,1706122337162,-500.0,0.0005041,31]
[312639103,1706122337172,-1288.27,0.0005041,31]
[312639104,1706122337181,-320.75394285,0.0005041,31]
[312639105,1706122337191,-500.0,0.0005041,31]
[312639106,1706122337201,-500.0,0.0005041,31]
[312639107,1706122337210,-500.0,0.0005041,31]
[312639108,1706122337220,-1216.74,0.0005041,31]
[312639109,1706122337230,-500.0,0.0005041,31]
[312639110,1706122337239,-789.81,0.0005041,31]
[312639111,1706122337249,-500.0,0.0005041,31]
[312639112,1706122337259,-1358.17,0.0005041,31]
[312639113,1706122337268,-500.0,0.0005041,31]
[312639114,1706122337278,-500.0,0.0005041,31]
[312639115,1706122337287,-500.0,0.0005041,31]
[312639116,1706122337301,-500.0,0.0005041,31]
[312639117,1706122337310,-500.0,0.0005041,31]
[312639118,1706122337320,-500.0,0.0005041,31]
[312639119,1706122337329,-500.0,0.0005041,31]
[312639120,1706122337342,-500.0,0.0005041,31]
[312639121,1706122337351,-835.3,0.0005041,31]
[312639122,1706122337361,-500.0,0.0005041,31]
[312639123,1706122337372,-5442.29,0.0005041,31]
[312639124,1706122337383,-500.0,0.0005041,31]
[312639125,1706122337392,-500.0,0.0005041,31]
[312639126,1706122337401,-500.0,0.0005041,31]
[312639127,1706122337411,-609.87,0.0005041,31]
[312639128,1706122337421,-500.0,0.0005041,31]
[312639129,1706122337430,-1213.12,0.0005041,31]
[312639130,1706122337440,-500.0,0.0005041,31]
[312639131,1706122337450,-500.0,0.0005041,31]
[312639132,1706122337460,-500.0,0.0005041,31]
[312639133,1706122337469,-500.0,0.0005041,31]
[312639134,1706122337479,-766.55,0.0005041,31]
[312639135,1706122337489,-352.94515216,0.0005041,31]
[312639136,1706122337509,-950.1,0.0005041,31]
[312639137,1706122337519,-891.54,0.0005041,31]
[312639138,1706122337529,-789.01,0.0005041,31]
[312639139,1706122337539,-571.48,0.0005041,31]
[312639140,1706122337548,-674.93,0.0005041,31]
[312639141,1706122337558,-500.0,0.0005041,31]
[312639142,1706122337568,-754.8,0.0005041,31]
[312639143,1706122337577,-994.52,0.0005041,31]
[312639144,1706122337588,-500.0,0.0005041,31]
[312639145,1706122337598,-250.52210465,0.0005041,31]
[312639146,1706122337608,-619.7,0.0005041,31]
[312639147,1706122337618,-1265.56,0.0005041,31]
[312639148,1706122337627,-500.0,0.0005041,31]
[312639149,1706122337637,-553.3,0.0005041,31]
[312639150,1706122337647,-697.79,0.0005041,31]
[312639151,1706122337657,-1070.96,0.0005041,31]
[312639152,1706122337666,-500.0,0.0005041,31]
[312639153,1706122337677,-1012.33,0.0005041,31]
[312639154,1706122337687,-1137.93,0.0005041,31]
[312639155,1706122337698,-876.45,0.0005041,31]
[312639156,1706122337708,-500.0,0.0005041,31]
[312639157,1706122337717,-715.02,0.0005041,31]
[312639158,1706122337728,-500.0,0.0005041,7]
[312639159,1706122337738,-500.0,0.0005041,31]
[312639160,1706122337748,-833.81,0.0005041,31]
[312639161,1706122337758,-500.0,0.0005041,31]
[312639162,1706122337768,-1061.9,0.0005041,31]
[312639163,1706122337778,-1257.58,0.0005041,31]
[312639164,1706122337789,-500.0,0.0005041,31]
[312639165,1706122337799,-500.0,0.0005041,31]
[312639166,1706122337808,-500.0,0.0005041,31]
[312639167,1706122337818,-642.76,0.0005041,31]
[312639168,1706122337828,-980.87,0.0005041,31]
[312639169,1706122337840,-2365.7,0.0005041,31]
[312639170,1706122337850,-550.34,0.0005041,31]
[312639171,1706122337860,-500.0,0.0005041,31]
[312639172,1706122337870,-500.0,0.0005041,31]
[312639173,1706122337879,-9651.62,0.0005041,5]
[312639174,1706122337889,-525.50126091,0.0005041,31]
[312639175,1706122337898,-500.0,0.0005041,31]
[312639176,1706122337908,-500.0,0.0005041,31]
[312639177,1706122337917,-500.0,0.0005041,31]
[312639178,1706122337926,-500.0,0.0005041,31]
[312639179,1706122337936,-1273.8,0.0005041,31]
[312639180,1706122337945,-516.0,0.0005041,31]
[312639181,1706122337954,-259.15,0.0005041,31]
[312639182,1706122337963,-500.0,0.0005041,31]
[312639183,1706122337973,-848.97,0.0005041,31]
[312639184,1706122337982,-826.53,0.0005041,31]
[312639185,1706122337992,-500.0,0.0005041,31]
[312639186,1706122338002,-500.0,0.0005041,31]
[312639187,1706122338011,-500.0,0.0005041,31]
[312639188,1706122338020,-570.78,0.0005041,31]
[312639189,1706122338030,-750.28,0.0005041,31]
[312639190,1706122338039,-500.0,0.0005041,31]
[312639191,1706122338049,-647.3,0.0005041,31]
[312639192,1706122338058,-1277.6,0.0005041,31]
[312639193,1706122338068,-886.52,0.0005041,31]
[312639194,1706122338077,-500.0,0.0005041,31]
[312639195,1706122338089,-744.61,0.0005041,31]
[312639196,1706122338098,-6353.27,0.0005041,5]
[312639197,1706122338108,-500.0,0.0005041,31]
[312639198,1706122338118,-688.18,0.0005041,31]
[312639199,1706122338127,-500.0,0.0005041,31]
[312639200,1706122338136,-500.0,0.0005041,31]
[312639201,1706122338146,-585.99,0.0005041,31]
[312639202,1706122338155,-500.0,0.0005041,31]
[312639203,1706122338164,-500.0,0.0005041,31]
[312639204,1706122338175,-1311.12,0.0005041,31]
[312639205,1706122338185,-500.0,0.0005041,31]
[312639206,1706122338194,-500.0,0.0005041,31]
[312639207,1706122338204,-500.0,0.0005041,31]
[312639208,1706122338214,-635.69,0.0005041,31]
[312639209,1706122338223,-2747.11,0.0005041,31]
[312639210,1706122338233,-1064.36,0.0005041,31]
[312639211,1706122338242,-500.0,0.0005041,31]
[312639212,1706122338251,-988.82,0.0005041,31]
[312639213,1706122338260,-500.0,0.0005041,31]
[312639214,1706122338270,-500.0,0.0005041,31]
[312639215,1706122338279,-336.97,0.0005041,31]
[312639216,1706122338289,-500.0,0.0005041,31]
[312639217,1706122338303,-500.0,0.0005041,31]
[312639218,1706122338312,-506.02,0.0005041,31]
[312639219,1706122338321,-500.0,0.0005041,31]
[312639220,1706122338332,-500.0,0.0005041,31]
[312639221,1706122338342,-4014.55,0.0005041,31]
[312639222,1706122338360,-996.79,0.0005041,31]
[312639223,1706122338370,-500.0,0.0005041,31]
[312639224,1706122338380,-879.67,0.0005041,31]
[312639225,1706122338389,-198.89312589,0.0005041,31]
[312639226,1706122338399,-500.0,0.0005041,31]
[312639227,1706122338409,-500.0,0.0005041,31]
[312639228,1706122338418,-556.81,0.0005041,31]
[312639229,1706122338428,-500.0,0.0005041,31]
[312639230,1706122338437,-1740.65,0.0005041,31]
[312639231,1706122338446,-722.88,0.0005041,31]
[312639232,1706122338456,-1603.09,0.0005041,31]
[312639233,1706122338465,-1257.39,0.0005041,31]
[312639234,1706122338474,-891.73,0.0005041,31]
[312639235,1706122338483,-500.0,0.0005041,31]
[312639236,1706122338493,-703.85,0.0005041,31]
[312639237,1706122338502,-530.6217735,0.0005041,31]
[312639238,1706122338511,-500.0,0.0005041,31]
[312639239,1706122338521,-500.0,0.0005041,31]
[312639240,1706122338530,-4733.77,0.0005041,31]
[312639241,1706122338539,-534.53,0.0005041,31]
[312639242,1706122338549,-3077.84,0.0005041,31]
[312639243,1706122338558,-2216.62,0.0005041,31]
[312639244,1706122338567,-500.0,0.0005041,31]
[312639245,1706122338577,-654.54,0.0005041,31]
[312639246,1706122338588,-1335.18,0.0005041,31]
[312639247,1706122338597,-500.0,0.0005041,31]
[312639248,1706122338607,-820.02,0.0005041,31]
[312639249,1706122338617,-603.22,0.0005041,31]
[312639250,1706122338626,-4058.85,0.0005041,31]
[312639251,1706122338635,-500.0,0.0005041,31]
[312639252,1706122338645,-870.48,0.0005041,31]
[312639253,1706122338654,-500.0,0.0005041,30]
[312639254,1706122338663,-1196.3,0.0005041,31]
[312639255,1706122338672,-691.03,0.0005041,31]
[312639256,1706122338681,-500.0,0.0005041,31]
[312639257,1706122338691,-500.0,0.0005041,31]
[312639258,1706122338700,-506.34,0.0005041,31]
[312639259,1706122338710,-320.69292245,0.0005041,31]
[312639260,1706122338720,-1595.23,0.0005041,31]
[312639261,1706122338729,-500.0,0.0005041,31]
[312639262,1706122338738,-9475.21,0.0005041,31]
[312639263,1706122338748,-2256.81,0.0005041,31]
[312639264,1706122338758,-500.0,0.0005041,31]
[312639265,1706122338767,-500.0,0.0005041,31]
[312639266,1706122338777,-500.0,0.0005041,31]
[312639267,1706122338786,-500.0,0.0005041,31]
[312639268,1706122338796,-504.15,0.0005041,31]
[312639269,1706122338805,-949.97,0.0005041,31]
[312639270,1706122338823,-760.02,0.0005041,31]
[312639271,1706122338841,-2007.79,0.0005041,31]
[312639272,1706122338859,-1753.67,0.0005041,2]
[312639273,1706122338872,-500.0,0.0005041,31]
[312639274,1706122338888,-960.34,0.0005041,31]
[312639275,1706122338905,-895.93,0.0005041,31]
[312639276,1706122338920,-500.0,0.0005041,31]
[312639277,1706122338936,-500.0,0.0005041,31]
[312639278,1706122338950,-500.0,0.0005041,31]
[312639279,1706122338964,-500.0,0.0005041,31]
[312639280,1706122338980,-9793.91,0.0005041,31]
[312639281,1706122338994,-630.07,0.0005041,31]
[312639282,1706122339009,-500.0,0.0005041,31]
[312639283,1706122339024,-1085.19,0.0005041,31]
[312639284,1706122339035,-222.70610893,0.0005041,31]
[312639285,1706122339052,-733.81,0.0005041,31]
[312639286,1706122339067,-500.0,0.0005041,31]
[312639287,1706122339082,-500.0,0.0005041,31]
[312639288,1706122339101,-500.0,0.0005041,31]
[312639289,1706122339119,-822.62,0.0005041,31]
[312639290,1706122339134,-786.38,0.0005041,31]
[312639291,1706122339151,-5724.55,0.0005041,31]
[312639292,1706122339166,-583.81,0.0005041,31]
[312639293,1706122339180,-1209.52,0.0005041,31]
[312639294,1706122339192,-500.0,0.0005041,31]
[312639295,1706122339204,-500.0,0.0005041,31]
[312639296,1706122339219,-500.0,0.0005041,31]
[312639297,1706122339233,-921.04,0.0005041,31]
[312639298,1706122339251,-1294.87,0.0005041,31]
[312639299,1706122339263,-593.18,0.0005041,31]
[312639300,1706122339275,-2304.75,0.0005041,31]
[312639301,1706122339294,-500.0,0.0005041,31]
[312639302,1706122339306,-1239.0,0.0005041,31]
[312639303,1706122339318,-604.69,0.0005041,31]
[312639304,1706122339331,-650.95,0.0005041,31]
[312639305,1706122339346,-1539.95,0.0005041,31]
[312639306,1706122339359,-8834.98,0.0005041,31]
[312639307,1706122339374,-500.0,0.0005041,31]
[312639308,1706122339391,-547.48,0.0005041,31]
[312639309,1706122339405,-500.0,0.0005041,31]
[312639310,1706122339419,-500.0,0.0005041,31]
[312639311,1706122339432,-1282.38,0.0005041,31]
[312639312,1706122339444,-2142.95,0.0005041,7]
[312639313,1706122339459,-966.05,0.0005041,31]
[312639314,1706122339472,-747.91,0.0005041,31]
[312639315,1706122339485,-1871.41,0.0005041,31]
[312639316,1706122339498,-912.87,0.0005041,31]
[312639317,1706122339511,-1116.62,0.0005041,31]
[312639318,1706122339524,-833.57,0.0005041,31]
[312639319,1706122339536,-500.0,0.0005041,31]
[312639320,1706122339548,-500.0,0.0005041,31]
[312639321,1706122339561,-1268.63,0.0005041,31]
[312639322,1706122339574,-657.31,0.0005041,31]
[312639323,1706122339586,-646.44,0.0005041,31]
[312639324,1706122339600,-500.0,0.0005041,31]
[312639325,1706122339612,-500.0,0.0005041,31]
[312639326,1706122339625,-731.18,0.0005041,31]
[312639327,1706122339638,-1207.08,0.0005041,31]
[312639328,1706122339650,-1174.69,0.0005041,31]
[312639329,1706122339662,-500.0,0.0005041,31]
[312639330,1706122339675,-2581.31,0.0005041,31]
[312639331,1706122339687,-740.71,0.0005041,31]
[312639332,1706122339699,-1329.41,0.0005041,31]
[312639333,1706122339712,-1378.41,0.0005041,31]
[312639334,1706122339725,-950.0,0.0005041,7]
[312639335,1706122339737,-545.75,0.0005041,31]
[312639336,1706122339749,-500.0,0.0005041,31]
[312639337,1706122339762,-500.0,0.0005041,31]
[312639338,1706122339774,-1309.93,0.0005041,31]
[312639339,1706122339786,-500.0,0.0005041,31]
[312639340,1706122339798,-506.88666506,0.0005041,31]
[312639341,1706122339811,-500.0,0.0005041,31]
[312639342,1706122339823,-973.63,0.0005041,31]
[312639343,1706122339835,-500.0,0.0005041,31]
[312639344,1706122339849,-1370.14,0.0005041,31]
[312639345,1706122339862,-500.0,0.0005041,31]
[312639346,1706122339874,-500.0,0.0005041,31]
[312639347,1706122339887,-500.0,0.0005041,31]
[312639348,1706122339900,-500.0,0.0005041,31]
[312639349,1706122339912,-625.5,0.0005041,31]
[312639350,1706122339924,-561.88,0.0005041,31]
[312639351,1706122339938,-500.0,0.0005041,31]
[312639352,1706122339950,-500.0,0.0005041,31]
[312639353,1706122339962,-500.0,0.0005041,31]
[312639354,1706122339974,-1202.1,0.0005041,31]
[312639355,1706122339987,-1086.56,0.0005041,31]
[312639356,1706122340000,-4191.4,0.0005041,31]
[312639357,1706122340012,-712.36,0.0005041,31]
[312639358,1706122340023,-500.0,0.0005041,31]
[312639359,1706122340035,-1256.89,0.0005041,31]
[312639360,1706122340046,-1151.56,0.0005041,31]
[312639361,1706122340058,-593.19,0.0005041,31]
[312639362,1706122340069,-500.0,0.0005041,31]
[312639363,1706122340081,-1249.41,0.0005041,31]
[312639364,1706122340093,-500.0,0.0005041,31]
[312639365,1706122340104,-500.0,0.0005041,31]
[312639366,1706122340116,-500.0,0.0005041,31]
[312639367,1706122340128,-500.0,0.0005041,31]
[312639368,1706122340139,-500.0,0.0005041,31]
[312639369,1706122340151,-500.0,0.0005041,31]
[312639370,1706122340163,-500.0,0.0005041,31]
[312639371,1706122340176,-1307.18,0.0005041,31]
[312639372,1706122340188,-500.0,0.0005041,31]
[312639373,1706122340199,-795.62,0.0005041,31]
[312639374,1706122340211,-749.12,0.0005041,31]
[312639375,1706122340223,-696.33,0.0005041,31]
[312639376,1706122340234,-500.0,0.0005041,31]
[312639377,1706122340246,-508.23820416,0.0005041,31]
[312639378,1706122340258,-500.0,0.0005041,14]
[312639379,1706122340269,-500.0,0.0005041,31]
[312639380,1706122340280,-1284.18,0.0005041,31]
[312639381,1706122340293,-652.98,0.0005041,31]
[312639382,1706122340309,-981.53,0.0005041,31]
[312639383,1706122340320,-523.2,0.0005041,31]
[312639384,1706122340331,-648.47,0.0005041,31]
[312639385,1706122340343,-510.01,0.0005041,31]
[312639386,1706122340357,-609.97,0.0005041,31]
[312639387,1706122340368,-668.31,0.0005041,31]
[312639388,1706122340381,-1472.4,0.0005041,31]
[312639389,1706122340393,-982.27,0.0005041,31]
[312639390,1706122340405,-500.0,0.0005041,31]
[312639391,1706122340416,-500.0,0.0005041,31]
[312639392,1706122340428,-500.0,0.0005041,31]
[312639393,1706122340441,-975.67,0.0005041,31]
[312639394,1706122340452,-1275.47,0.0005041,20]
[312639395,1706122340463,-500.0,0.0005041,31]
[312639396,1706122340477,-859.46,0.0005041,31]
[312639397,1706122340488,-500.0,0.0005041,31]
[312639398,1706122340499,-2167.45,0.0005041,31]
[312639399,1706122340510,-500.0,0.0005041,31]
[312639400,1706122340522,-500.0,0.0005041,31]
[312639401,1706122340534,-512.83282185,0.0005041,31]
[312639402,1706122340545,-666.0,0.0005041,31]
[312639403,1706122340557,-1089.95,0.0005041,31]
[312639404,1706122340568,-641.64,0.0005041,31]
[312639405,1706122340579,-924.64,0.0005041,31]
[312639406,1706122340592,-1430.01,0.0005041,31]
[312639407,1706122340603,-500.0,0.0005041,31]
[312639408,1706122340614,-536.15,0.0005041,31]
[312639409,1706122340626,-589.35,0.0005041,31]
[312639410,1706122340637,-500.0,0.0005041,31]
[312639411,1706122340648,-6481.22,0.0005041,31]
[312639412,1706122340661,-1564.68,0.0005041,31]
[312639413,1706122340671,-1129.08,0.0005041,31]
[312639414,1706122340683,-944.64,0.0005041,31]
[312639415,1706122340694,-500.0,0.0005041,31]
[312639416,1706122340706,-500.0,0.0005041,31]
[312639417,1706122340717,-500.0,0.0005041,31]
[312639418,1706122340728,-500.0,0.0005041,31]
[312639419,1706122340739,-500.0,0.0005041,31]
[312639420,1706122340751,-500.0,0.0005041,30]
[312639421,1706122340762,-1816.2,0.0005041,31]
[312639422,1706122340774,-457.90075786,0.0005041,31]
[312639423,1706122340786,-500.0,0.0005041,31]
[312639424,1706122340798,-887.53,0.0005041,31]
[312639425,1706122340810,-677.18,0.0005041,31]
[312639426,1706122340823,-1137.33,0.0005041,31]
[312639427,1706122340834,-1033.79,0.0005041,31]
[312639428,1706122340847,-952.51,0.0005041,31]
[312639429,1706122340858,-750.26,0.0005041,31]
[312639430,1706122340870,-500.0,0.0005041,31]
[312639431,1706122340881,-500.0,0.0005041,31]
[312639432,1706122340892,-500.0,0.0005041,31]
[312639433,1706122340904,-500.0,0.0005041,7]
[312639434,1706122340916,-616.97,0.0005041,31]
[312639435,1706122340927,-500.0,0.0005041,31]
[312639436,1706122340938,-1156.88,0.0005041,31]
[312639437,1706122340950,-575.07,0.0005041,31]
[312639438,1706122340961,-500.0,0.0005041,31]
[312639439,1706122340972,-7701.48,0.0005041,15]
[312639440,1706122340984,-500.0,0.0005041,31]
[312639441,1706122340995,-508.6,0.0005041,31]
[312639442,1706122341008,-500.0,0.0005041,31]
[312639443,1706122341019,-500.0,0.0005041,31]
[312639444,1706122341030,-571.75,0.0005041,31]
[312639445,1706122341041,-588.05,0.0005041,31]
[312639446,1706122341052,-500.0,0.0005041,31]
[312639447,1706122341063,-828.94,0.0005041,31]
[312639448,1706122341074,-532.52,0.0005041,31]
[312639449,1706122341086,-524.22144513,0.0005041,31]
[312639450,1706122341098,-500.0,0.0005041,31]
[312639451,1706122341110,-1048.36,0.0005041,31]
[312639452,1706122341124,-500.0,0.0005041,31]
[312639453,1706122341136,-732.05,0.0005041,31]
[312639454,1706122341148,-500.0,0.0005041,31]
[312639455,1706122341160,-952.74,0.0005041,31]
[312639456,1706122341172,-1176.12,0.0005041,31]
[312639457,1706122341184,-500.0,0.0005041,31]
[312639458,1706122341195,-1417.3,0.0005041,2]
[312639459,1706122341207,-1220.83,0.0005041,31]
[312639460,1706122341218,-921.3,0.0005041,31]
[312639461,1706122341230,-897.04,0.0005041,31]
[312639462,1706122341241,-500.0,0.0005041,31]
[312639463,1706122341252,-5880.03,0.0005041,31]
[312639464,1706122341263,-1858.89,0.0005041,31]
[312639465,1706122341274,-587.46060921,0.0005041,31]
[312639466,1706122341285,-500.0,0.0005041,31]
[312639467,1706122341298,-500.0,0.0005041,31]
[312639468,1706122341309,-500.0,0.0005041,31]
[312639469,1706122341320,-550.81,0.0005041,31]
[312639470,1706122341331,-500.0,0.0005041,31]
[312639471,1706122341343,-365.16119528,0.0005041,31]
[312639472,1706122341353,-1157.35,0.0005041,31]
[312639473,1706122341364,-889.14,0.0005041,31]
[312639474,1706122341378,-739.19,0.0005041,31]
[312639475,1706122341389,-500.0,0.0005041,31]
[312639476,1706122341400,-1017.77,0.0005041,31]
[312639477,1706122341412,-500.0,0.0005041,31]
[312639478,1706122341422,-308.97145882,0.0005041,31]
[312639479,1706122341434,-899.45,0.0005041,31]
[312639480,1706122341445,-1542.77,0.0005041,31]
[312639481,1706122341457,-522.28762987,0.0005041,31]
[312639482,1706122341468,-1135.37,0.0005041,31]
[312639483,1706122341479,-502.38,0.0005041,31]
[312639484,1706122341490,-1208.25,0.0005041,31]
[312639485,1706122341502,-4959.4983354,0.00050426,14]
[312639486,1706122341513,-150.0,0.00050452,30]
[312639487,1706122341525,-150.0,0.00050454,30]
[312639488,1706122341536,-150.0,0.00050469,2]
[312639489,1706122341548,-150.0,0.0005049,30]
[312639490,1706122341559,-185.0,0.000505,2]
[312639491,1706122341570,-200.0,0.000505,28]
[312639492,1706122341581,-2110.0,0.000505,15]
[312639493,1706122341594,-150.0,0.00050506,30]
[312639494,1706122341605,-150.0,0.00050506,30]
[312639495,1706122341616,-150.0,0.00050536,30]
[312639496,1706122341628,-2013.56,0.0005054,2]
[312639497,1706122341640,-150.0,0.00050545,30]
[312639498,1706122341652,-150.0,0.00050561,30]
[312639499,1706122341664,-150.0,0.00050575,30]
[312639500,1706122341675,-2536.0,0.0005059,2]
[312639501,1706122341687,-732.0,0.0005059,2]
[312639502,1706122341700,-150.0,0.00050616,30]
[312639503,1706122341711,-150.0,0.00050636,30]
[312639504,1706122341723,-500.0,0.00050667,14]
[312639505,1706122341735,-150.0,0.00050671,30]
[312639506,1706122341748,-150.0,0.00050671,30]
[312639507,1706122341760,-697.53,0.00050684,31]
[312639508,1706122341771,-632.99,0.00050684,31]
[312639509,1706122341783,-256.11961745,0.00050684,31]
[312639510,1706122341794,-506.55370787,0.00050684,31]
[312639511,1706122341805,-279.72122034,0.00050684,31]
[312639512,1706122341816,-500.0,0.00050684,31]
[312639513,1706122341827,-500.0,0.00050684,31]
[312639514,1706122341838,-500.0,0.00050684,31]
[312639515,1706122341849,-500.0,0.00050684,31]
[312639516,1706122341860,-515.70264869,0.00050684,31]
[312639517,1706122341872,-500.0,0.00050684,31]
[312639518,1706122341883,-564.43628289,0.00050684,31]
[312639519,1706122341894,-513.26,0.00050684,31]
[312639520,1706122341905,-500.0,0.00050684,31]
[312639521,1706122341917,-307.97085908,0.00050684,31]
[312639522,1706122341928,-500.0,0.00050684,31]
[312639523,1706122341939,-528.75048841,0.00050684,31]